[Event "Skilling Open CCT 2021"]
[Site "Online"]
[Date "2020.11.19"]
[Round "14.1"]
[White "Vachier-Lagrave, Maxime"]
[Black "Ding, Liren"]
[Result "1/2-1/2"]
[ECO "B90"]
[WhiteElo "2860"]
[BlackElo "2836"]
[Annotator "RC"]
[PlyCount "122"]
[EventDate "2020.11.20"]
[EventType "tourn"]
[EventCountry "NET"]
[Tiebreak "Koya+Number of black wins+Number of wins"]
[SourceTitle "playchess.com"]
[Source "ChessBase"]
[SourceQuality "1"]
[TimeControl "900+10"]

1. e4 {[%emt 0:00:00]} c5 {[%emt 0:00:00]} 2. Nf3 {[%emt 0:00:00]} d6 {[%emt 0:
00:00]} 3. d4 {[%emt 0:00:00]} cxd4 {[%emt 0:00:00]} 4. Nxd4 {[%emt 0:00:00]}
Nf6 {[%emt 0:00:00]} 5. Nc3 {[%emt 0:00:00]} a6 {[%emt 0:00:00]} 6. Bd3 {
[%emt 0:00:00]} e5 {[%emt 0:00:00]} 7. Nde2 {[%emt 0:00:00]} Nc6 {[%emt 0:00:
00]} 8. Nd5 {[%emt 0:00:07]} Nxd5 {[%emt 0:00:00]} 9. exd5 {[%emt 0:00:00]} Nb4
{[%emt 0:00:00]} 10. Be4 {[%emt 0:00:11]} a5 {[%emt 0:00:12]} 11. c3 {[%emt 0:
00:51]} Na6 {[%emt 0:00:02]} 12. O-O {[%emt 0:00:02]} f5 {[%emt 0:00:30]} 13.
Bc2 {[%emt 0:00:01]} Be7 {[%emt 0:00:01]} 14. f4 {[%emt 0:00:08]} O-O {[%emt 0:
00:13]} 15. Be3 {[%emt 0:00:02]} e4 {[%emt 0:00:27]} 16. Nd4 {[%emt 0:00:11]}
Nc7 {[%emt 0:01:33]} 17. Bb3 {[%emt 0:00:23]} Bf6 {[%emt 0:00:29]} 18. a4 {
[%emt 0:00:14]} Kh8 {[%emt 0:00:22]} 19. Bc4 {[%emt 0:00:28]} Qe7 {[%emt 0:00:
50]} 20. Qb3 {[%emt 0:00:08]} Na6 {[%emt 0:02:12]} 21. Ne6 {[%emt 0:00:08]}
Bxe6 {[%emt 0:01:41]} 22. dxe6 {[%emt 0:00:00]} Nc5 {[%emt 0:00:00]} 23. Bxc5 {
[%emt 0:00:02]} dxc5 {[%emt 0:00:01]} 24. Rad1 {[%emt 0:01:31]} Rad8 {[%emt 0:
03:43]} 25. Qb5 {[%emt 0:00:04]} g5 {[%emt 0:00:15]} 26. Rd7 {[%emt 0:01:33]}
Rxd7 {[%emt 0:00:03]} 27. Qxd7 {[%emt 0:00:00]} gxf4 {[%emt 0:00:53]} 28. Rxf4
{[%emt 0:00:08]} Bg5 {[%emt 0:00:08]} 29. Qxe7 {[%emt 0:03:36]} Bxe7 {[%emt 0:
00:03]} 30. g4 {[%emt 0:00:00]} fxg4 {[%emt 0:00:25]} 31. Rxg4 {[%emt 0:00:02]}
Rg8 {[%emt 0:00:47]} 32. Rxg8+ {[%emt 0:00:03]} Kxg8 {[%emt 0:00:00]} 33. Kf2 {
[%emt 0:00:00]} Kf8 {[%emt 0:00:30]} 34. Ke3 {[%emt 0:00:02]} Bg5+ {[%emt 0:00:
01]} 35. Kxe4 {[%emt 0:00:01]} Bc1 {[%emt 0:00:41]} 36. Kd5 {[%emt 0:00:03]}
Ke7 {[%emt 0:00:01]} 37. b3 {[%emt 0:00:11]} Bd2 {[%emt 0:03:26]} 38. Bd3 {
[%emt 0:00:02]} h6 {[%emt 0:00:08]} 39. c4 {[%emt 0:00:01]} Be3 {[%emt 0:00:33]
} 40. Be2 {[%emt 0:00:02]} Bd4 {[%emt 0:00:04]} 41. h4 {[%emt 0:00:22]} Bf2 {
[%emt 0:00:03]} 42. h5 {[%emt 0:00:01]} Bd4 {[%emt 0:00:04]} 43. Bf3 {[%emt 0:
00:04]} Bf2 {[%emt 0:00:16]} 44. Ke5 {[%emt 0:00:06]} Bd4+ {[%emt 0:00:03]} 45.
Kf5 {[%emt 0:00:22]} b6 {[%emt 0:00:01]} 46. Bg4 {[%emt 0:00:11]} Bc3 {[%emt 0:
00:07]} 47. Bh3 {[%emt 0:00:05]} Bd4 {[%emt 0:00:08]} 48. Kf4 {[%emt 0:00:02]}
Kd6 {[%emt 0:00:06]} 49. Ke4 {[%emt 0:00:02]} Bc3 {[%emt 0:00:06]} 50. Kf5 {
[%emt 0:00:02]} Ke7 {[%emt 0:00:01]} 51. Bg2 {[%emt 0:00:01]} Bb2 {[%emt 0:00:
10]} 52. Bc6 {[%emt 0:00:04]} Bc3 {[%emt 0:00:07]} 53. Bd7 {[%emt 0:00:09]} Bb2
{[%emt 0:00:01]} 54. Ke4 {[%emt 0:00:02]} Kd6 {[%emt 0:00:01]} 55. Kf4 {
[%emt 0:00:01]} Bc3 {[%emt 0:00:02]} 56. Kf5 {[%emt 0:00:02]} Ke7 {[%emt 0:00:
02]} 57. Bc8 {[%emt 0:00:02]} Bb2 {[%emt 0:00:02]} 58. Kg6 {[%emt 0:00:09]} Bc1
{[%emt 0:00:01]} 59. Kf5 {[%emt 0:00:01]} Bb2 {[%emt 0:00:02]} 60. Kg6 {
[%emt 0:00:00]} Bc1 {[%emt 0:00:00]} 61. Kf5 {[%emt 0:00:01]} Bb2 {[%emt 0:00:
01]} 1/2-1/2

[Event "Skilling Open CCT 2021"]
[Site "Online"]
[Date "2020.11.19"]
[Round "14.2"]
[White "Giri, Anish"]
[Black "Duda, Jan-Krzysztof"]
[Result "1/2-1/2"]
[ECO "C42"]
[WhiteElo "2731"]
[BlackElo "2774"]
[Annotator "ChessBase"]
[PlyCount "54"]
[EventDate "2020.11.20"]
[EventType "tourn"]
[EventCountry "NET"]
[Tiebreak "Koya+Number of black wins+Number of wins"]
[SourceTitle "playchess.com"]
[Source "ChessBase"]
[SourceQuality "1"]
[TimeControl "900+10"]

1. e4 {[%emt 0:00:00]} e5 {[%emt 0:00:00]} 2. Nf3 {[%emt 0:00:00]} Nf6 {
[%emt 0:00:00]} 3. Nxe5 {[%emt 0:00:00]} d6 {[%emt 0:00:00]} 4. Nf3 {[%emt 0:
00:00]} Nxe4 {[%emt 0:00:00]} 5. d4 {[%emt 0:00:00]} d5 {[%emt 0:00:00]} 6. Bd3
{[%emt 0:00:00]} Bf5 {[%emt 0:00:00]} 7. O-O {[%emt 0:00:00]} Be7 {[%emt 0:00:
00]} 8. Re1 {[%emt 0:00:00]} O-O {[%emt 0:00:00]} 9. c4 {[%emt 0:00:00]} Nc6 {
[%emt 0:00:00]} 10. cxd5 {[%emt 0:00:03]} Qxd5 {[%emt 0:00:00]} 11. Nc3 {
[%emt 0:00:01]} Nxc3 {[%emt 0:00:03]} 12. bxc3 {[%emt 0:00:00]} Rae8 {[%emt 0:
01:19]} 13. Rb1 {[%emt 0:00:48]} Bxd3 {[%emt 0:00:28]} 14. Qxd3 {[%emt 0:00:03]
} b6 {[%emt 0:00:20]} 15. Bf4 {[%emt 0:00:30]} Qd7 {[%emt 0:02:42]} 16. d5 {
[%emt 0:01:00]} Na5 {[%emt 0:00:55]} 17. Re3 {[%emt 0:01:16]} Bf6 {[%emt 0:02:
04]} 18. Be5 {[%emt 0:03:03]} Bxe5 {[%emt 0:01:08]} 19. Nxe5 {[%emt 0:00:02]}
Qa4 {[%emt 0:00:01]} 20. Rbe1 {[%emt 0:01:27]} f6 {[%emt 0:03:00]} 21. Rh3 {
[%emt 0:00:03]} g6 {[%emt 0:00:16]} 22. Rxh7 {[%emt 0:00:10]} Kxh7 {[%emt 0:00:
12]} 23. Qxg6+ {[%emt 0:00:10]} Kh8 {[%emt 0:00:01]} 24. Qh5+ {[%emt 0:01:38]}
Kg7 {[%emt 0:00:18]} 25. Qg6+ {[%emt 0:00:04]} Kh8 {[%emt 0:00:05]} 26. Qh6+ {
[%emt 0:00:11]} Kg8 {[%emt 0:00:01]} 27. Qg6+ {[%emt 0:00:10]} Kh8 {[%emt 0:00:
01]} 1/2-1/2

[Event "Skilling Open CCT 2021"]
[Site "Online"]
[Date "2020.11.19"]
[Round "14.3"]
[White "Karjakin, Sergey"]
[Black "Aronian, Levon"]
[Result "0-1"]
[ECO "D00"]
[WhiteElo "2709"]
[BlackElo "2778"]
[Annotator "RC"]
[PlyCount "62"]
[EventDate "2020.11.20"]
[EventType "tourn"]
[EventCountry "NET"]
[Tiebreak "Koya+Number of black wins+Number of wins"]
[SourceTitle "playchess.com"]
[Source "ChessBase"]
[SourceQuality "1"]
[TimeControl "900+10"]

1. d4 {[%emt 0:00:00]} Nf6 {[%emt 0:00:00]} 2. Bg5 {[%emt 0:00:00]} d5 {
[%emt 0:00:00]} 3. Nd2 {[%emt 0:00:00]} c5 {[%emt 0:00:15]} 4. dxc5 {[%emt 0:
00:00]} e6 {[%emt 0:00:34]} 5. e4 {[%emt 0:00:00]} h6 {[%emt 0:00:41]} 6. Bh4 {
[%emt 0:00:19]} dxe4 {[%emt 0:00:21]} 7. Nxe4 {[%emt 0:00:38]} Qa5+ {[%emt 0:
00:03]} 8. Nd2 {[%emt 0:01:39]} Qxc5 {[%emt 0:00:33]} 9. Ngf3 {[%emt 0:00:06]}
Nbd7 {[%emt 0:00:23]} 10. Bd3 {[%emt 0:00:10]} b6 {[%emt 0:00:03]} 11. Qe2 {
[%emt 0:01:14]} Bb7 {[%emt 0:00:58]} 12. O-O-O {[%emt 0:00:01]} Be7 {[%emt 0:
02:21]} 13. Kb1 {[%emt 0:00:03]} Rc8 {[%emt 0:00:28]} 14. Rhe1 {[%emt 0:01:12]}
O-O {[%emt 0:01:01]} 15. g4 {[%emt 0:02:23]} Rfd8 {[%emt 0:00:08]} 16. g5 {
[%emt 0:00:57]} hxg5 {[%emt 0:00:20]} 17. Bxg5 {[%emt 0:00:01]} Nd5 {[%emt 0:
03:16]} 18. Rg1 {[%emt 0:02:57]} Bxg5 {[%emt 0:00:48]} 19. Rxg5 {[%emt 0:00:04]
} Qb4 {[%emt 0:00:07]} 20. Ne4 {[%emt 0:00:24]} Nf4 {[%emt 0:00:12]} 21. Qe3 {
[%emt 0:00:06]} Nxd3 {[%emt 0:01:18]} 22. cxd3 {[%emt 0:00:48]} Bxe4 {[%emt 0:
00:49]} 23. dxe4 {[%emt 0:00:03]} Nf6 {[%emt 0:00:10]} 24. Nd4 {[%emt 0:03:50]}
g6 {[%emt 0:02:05]} 25. a3 {[%emt 0:01:33]} Qa4 {[%emt 0:00:23]} 26. Rd2 {
[%emt 0:00:28]} e5 {[%emt 0:00:10]} 27. Rxe5 {[%emt 0:00:23]} Ng4 {[%emt 0:00:
11]} 28. Qf4 {[%emt 0:00:01]} Nxe5 {[%emt 0:00:53]} 29. Qxe5 {[%emt 0:00:00]}
Qc4 {[%emt 0:00:38]} 30. Rd1 {[%emt 0:00:23]} Rc6 {[%emt 0:00:24]} 31. b3 {
[%emt 0:00:27]} Qc3 {[%emt 0:00:09]} 0-1

[Event "Skilling Open CCT 2021"]
[Site "Online"]
[Date "2020.11.19"]
[Round "14.4"]
[White "Nakamura, Hikaru"]
[Black "Firouzja, Alireza"]
[Result "1-0"]
[ECO "B19"]
[WhiteElo "2829"]
[BlackElo "2703"]
[Annotator "RC"]
[PlyCount "85"]
[EventDate "2020.11.20"]
[EventType "tourn"]
[EventCountry "NET"]
[Tiebreak "Koya+Number of black wins+Number of wins"]
[SourceTitle "playchess.com"]
[Source "ChessBase"]
[SourceQuality "1"]
[TimeControl "900+10"]

1. e4 {[%emt 0:00:00]} c6 {[%emt 0:00:00]} 2. d4 {[%emt 0:00:00]} d5 {[%emt 0:
00:00]} 3. Nc3 {[%emt 0:00:00]} dxe4 {[%emt 0:00:00]} 4. Nxe4 {[%emt 0:00:00]}
Bf5 {[%emt 0:00:00]} 5. Ng3 {[%emt 0:00:00]} Bg6 {[%emt 0:00:01]} 6. h4 {
[%emt 0:00:00]} h6 {[%emt 0:00:01]} 7. Nf3 {[%emt 0:00:00]} Nd7 {[%emt 0:00:01]
} 8. h5 {[%emt 0:00:00]} Bh7 {[%emt 0:00:01]} 9. Bd3 {[%emt 0:00:00]} Bxd3 {
[%emt 0:00:01]} 10. Qxd3 {[%emt 0:00:00]} e6 {[%emt 0:00:01]} 11. Bf4 {[%emt 0:
00:13]} Qa5+ {[%emt 0:00:14]} 12. Bd2 {[%emt 0:00:01]} Bb4 {[%emt 0:00:04]} 13.
c3 {[%emt 0:01:35]} Be7 {[%emt 0:00:09]} 14. c4 {[%emt 0:00:07]} Qb6 {[%emt 0:
04:22]} 15. Bc3 {[%emt 0:01:29]} Ngf6 {[%emt 0:00:07]} 16. Ne5 {[%emt 0:00:54]}
Rd8 {[%emt 0:00:59]} 17. Qe2 {[%emt 0:02:39]} Bb4 {[%emt 0:00:50]} 18. O-O {
[%emt 0:00:03]} Bxc3 {[%emt 0:00:03]} 19. bxc3 {[%emt 0:00:00]} O-O {[%emt 0:
00:08]} 20. Rab1 {[%emt 0:00:51]} Qc7 {[%emt 0:00:06]} 21. f4 {[%emt 0:00:05]}
c5 {[%emt 0:00:47]} 22. Qf3 {[%emt 0:00:30]} Nb6 {[%emt 0:00:56]} 23. Rfd1 {
[%emt 0:02:17]} Nfd7 {[%emt 0:02:08]} 24. Ne4 {[%emt 0:04:13]} cxd4 {[%emt 0:
00:23]} 25. cxd4 {[%emt 0:00:00]} f5 {[%emt 0:01:48]} 26. Nc5 {[%emt 0:00:02]}
Nxc5 {[%emt 0:00:06]} 27. dxc5 {[%emt 0:00:00]} Qxc5+ {[%emt 0:00:03]} 28. Kh2
{[%emt 0:00:01]} Qc7 {[%emt 0:00:31]} 29. a4 {[%emt 0:00:19]} Rxd1 {[%emt 0:01:
39]} 30. Rxd1 {[%emt 0:00:00]} Rd8 {[%emt 0:00:41]} 31. Qxb7 {[%emt 0:00:41]}
Qxb7 {[%emt 0:00:45]} 32. Rxd8+ {[%emt 0:00:03]} Kh7 {[%emt 0:00:02]} 33. Ng6 {
[%emt 0:00:00]} Qc8 {[%emt 0:00:33]} 34. Rxc8 {[%emt 0:00:32]} Nxc8 {[%emt 0:
00:01]} 35. c5 {[%emt 0:00:32]} Kg8 {[%emt 0:00:19]} 36. Kg3 {[%emt 0:00:02]}
Kf7 {[%emt 0:00:32]} 37. Kf3 {[%emt 0:00:02]} Ke8 {[%emt 0:00:48]} 38. Ke3 {
[%emt 0:00:04]} Kd7 {[%emt 0:00:02]} 39. Kd4 {[%emt 0:00:02]} a6 {[%emt 0:01:
19]} 40. Ke5 {[%emt 0:00:03]} Kc6 {[%emt 0:00:45]} 41. Kxe6 {[%emt 0:00:06]}
Kxc5 {[%emt 0:00:03]} 42. Kf7 {[%emt 0:00:03]} Kb4 {[%emt 0:00:31]} 43. Kxg7 {
[%emt 0:00:01]} 1-0

[Event "Skilling Open CCT 2021"]
[Site "Online"]
[Date "2020.11.19"]
[Round "14.5"]
[White "Le, Quang Liem"]
[Black "Anton Guijarro, David"]
[Result "1-0"]
[ECO "C83"]
[WhiteElo "2744"]
[BlackElo "2667"]
[Annotator "RC"]
[PlyCount "63"]
[EventDate "2020.11.20"]
[EventType "tourn"]
[EventCountry "NET"]
[Tiebreak "Koya+Number of black wins+Number of wins"]
[SourceTitle "playchess.com"]
[Source "ChessBase"]
[SourceQuality "1"]
[TimeControl "900+10"]

1. e4 {[%emt 0:00:00]} e5 {[%emt 0:00:00]} 2. Nf3 {[%emt 0:00:00]} Nc6 {
[%emt 0:00:00]} 3. Bb5 {[%emt 0:00:00]} a6 {[%emt 0:00:00]} 4. Ba4 {[%emt 0:00:
00]} Nf6 {[%emt 0:00:00]} 5. O-O {[%emt 0:00:00]} Nxe4 {[%emt 0:00:00]} 6. d4 {
[%emt 0:00:00]} b5 {[%emt 0:00:00]} 7. Bb3 {[%emt 0:00:00]} d5 {[%emt 0:00:00]}
8. dxe5 {[%emt 0:00:00]} Be6 {[%emt 0:00:00]} 9. Nbd2 {[%emt 0:00:00]} Be7 {
[%emt 0:00:02]} 10. c3 {[%emt 0:00:02]} O-O {[%emt 0:00:02]} 11. Bc2 {[%emt 0:
00:01]} f5 {[%emt 0:00:01]} 12. Nb3 {[%emt 0:00:02]} Qd7 {[%emt 0:00:03]} 13.
Nfd4 {[%emt 0:00:01]} Nxd4 {[%emt 0:00:01]} 14. Nxd4 {[%emt 0:00:00]} c5 {
[%emt 0:00:01]} 15. Nxe6 {[%emt 0:00:01]} Qxe6 {[%emt 0:00:02]} 16. f3 {
[%emt 0:00:01]} Ng5 {[%emt 0:00:00]} 17. Bxg5 {[%emt 0:00:02]} Bxg5 {[%emt 0:
00:02]} 18. f4 {[%emt 0:00:00]} Be7 {[%emt 0:00:06]} 19. Qf3 {[%emt 0:00:01]}
Rad8 {[%emt 0:00:30]} 20. Rfd1 {[%emt 0:00:03]} g6 {[%emt 0:02:15]} 21. Rd2 {
[%emt 0:00:05]} Rd7 {[%emt 0:00:14]} 22. Rad1 {[%emt 0:00:55]} Rfd8 {[%emt 0:
00:05]} 23. h3 {[%emt 0:00:05]} h5 {[%emt 0:00:16]} 24. g4 {[%emt 0:00:17]}
hxg4 {[%emt 0:00:21]} 25. hxg4 {[%emt 0:00:00]} fxg4 {[%emt 0:00:04]} 26. Qh1 {
[%emt 0:00:26]} Bf8 {[%emt 0:02:31]} 27. Qh4 {[%emt 0:00:36]} Bg7 {[%emt 0:03:
49]} 28. Qg5 {[%emt 0:03:29]} Kf7 {[%emt 0:03:58]} 29. Re2 {[%emt 0:00:24]} Re7
{[%emt 0:00:59]} 30. f5 {[%emt 0:00:14]} gxf5 {[%emt 0:00:05]} 31. Bxf5 {
[%emt 0:00:03]} Qh6 {[%emt 0:02:43]} 32. Bg6+ {[%emt 0:00:37]} 1-0

[Event "Skilling Open CCT 2021"]
[Site "Online"]
[Date "2020.11.19"]
[Round "14.6"]
[White "Vidit, Santosh Gujrathi"]
[Black "Radjabov, Teimour"]
[Result "1/2-1/2"]
[ECO "A25"]
[WhiteElo "2636"]
[BlackElo "2758"]
[Annotator "RC"]
[PlyCount "61"]
[EventDate "2020.11.20"]
[EventType "tourn"]
[EventCountry "NET"]
[Tiebreak "Koya+Number of black wins+Number of wins"]
[SourceTitle "playchess.com"]
[Source "ChessBase"]
[SourceQuality "1"]
[TimeControl "900+10"]

1. c4 {[%emt 0:00:00]} g6 {[%emt 0:00:00]} 2. g3 {[%emt 0:00:11]} Bg7 {[%emt 0:
00:00]} 3. Bg2 {[%emt 0:00:06]} e5 {[%emt 0:00:03]} 4. Nc3 {[%emt 0:00:02]} Nc6
{[%emt 0:00:02]} 5. e3 {[%emt 0:00:28]} d6 {[%emt 0:00:09]} 6. Nge2 {[%emt 0:
00:05]} Nge7 {[%emt 0:00:24]} 7. d3 {[%emt 0:00:10]} O-O {[%emt 0:00:29]} 8.
Rb1 {[%emt 0:00:16]} a5 {[%emt 0:00:30]} 9. a3 {[%emt 0:00:02]} Be6 {[%emt 0:
00:15]} 10. Nd5 {[%emt 0:00:05]} f5 {[%emt 0:00:43]} 11. b4 {[%emt 0:00:08]}
axb4 {[%emt 0:00:02]} 12. axb4 {[%emt 0:00:00]} Bf7 {[%emt 0:02:20]} 13. b5 {
[%emt 0:00:26]} Na5 {[%emt 0:00:13]} 14. O-O {[%emt 0:01:11]} c6 {[%emt 0:00:
49]} 15. Nxe7+ {[%emt 0:01:02]} Qxe7 {[%emt 0:00:02]} 16. bxc6 {[%emt 0:02:29]}
bxc6 {[%emt 0:00:03]} 17. Bd2 {[%emt 0:00:46]} e4 {[%emt 0:00:25]} 18. Nd4 {
[%emt 0:00:17]} c5 {[%emt 0:01:03]} 19. Nb5 {[%emt 0:00:16]} Nc6 {[%emt 0:00:
16]} 20. dxe4 {[%emt 0:03:36]} fxe4 {[%emt 0:00:18]} 21. Qc2 {[%emt 0:00:05]}
Ne5 {[%emt 0:01:12]} 22. Bxe4 {[%emt 0:04:30]} Bxc4 {[%emt 0:00:25]} 23. Bxa8 {
[%emt 0:00:02]} Rxa8 {[%emt 0:00:09]} 24. f4 {[%emt 0:00:10]} Ra2 {[%emt 0:01:
26]} 25. Qd1 {[%emt 0:00:02]} Nd3 {[%emt 0:01:02]} 26. f5 {[%emt 0:00:58]} Bh6
{[%emt 0:02:31]} 27. Rf3 {[%emt 0:00:38]} Ne5 {[%emt 0:00:36]} 28. Rf2 {
[%emt 0:00:11]} Nd3 {[%emt 0:00:14]} 29. Rf3 {[%emt 0:00:01]} Ne5 {[%emt 0:00:
50]} 30. Rf2 {[%emt 0:00:01]} Nd3 {[%emt 0:00:03]} 31. Rf3 {[%emt 0:00:01]}
1/2-1/2

[Event "Skilling Open CCT 2021"]
[Site "Online"]
[Date "2020.11.19"]
[Round "14.7"]
[White "So, Wesley"]
[Black "Carlsen, Magnus"]
[Result "1/2-1/2"]
[ECO "E36"]
[WhiteElo "2741"]
[BlackElo "2881"]
[Annotator "RC"]
[PlyCount "42"]
[EventDate "2020.11.20"]
[EventType "tourn"]
[EventCountry "NET"]
[Tiebreak "Koya+Number of black wins+Number of wins"]
[SourceTitle "playchess.com"]
[Source "ChessBase"]
[SourceQuality "1"]
[TimeControl "900+10"]

1. d4 {[%emt 0:00:00]} Nf6 {[%emt 0:00:00]} 2. c4 {[%emt 0:00:00]} e6 {[%emt 0:
00:00]} 3. Nc3 {[%emt 0:00:00]} Bb4 {[%emt 0:00:00]} 4. Qc2 {[%emt 0:00:00]} d5
{[%emt 0:00:00]} 5. a3 {[%emt 0:00:05]} Bxc3+ {[%emt 0:00:00]} 6. Qxc3 {
[%emt 0:00:00]} O-O {[%emt 0:01:07]} 7. Nf3 {[%emt 0:00:06]} dxc4 {[%emt 0:00:
02]} 8. Qxc4 {[%emt 0:00:00]} b6 {[%emt 0:00:00]} 9. Bg5 {[%emt 0:00:00]} Bb7 {
[%emt 0:00:57]} 10. Rd1 {[%emt 0:00:13]} Nbd7 {[%emt 0:00:19]} 11. Ne5 {
[%emt 0:00:08]} h6 {[%emt 0:01:37]} 12. Nxd7 {[%emt 0:00:08]} Qxd7 {[%emt 0:00:
00]} 13. Bxf6 {[%emt 0:00:01]} gxf6 {[%emt 0:00:00]} 14. d5 {[%emt 0:00:02]}
exd5 {[%emt 0:02:20]} 15. Qf4 {[%emt 0:00:19]} Kh7 {[%emt 0:01:46]} 16. e3 {
[%emt 0:00:16]} c5 {[%emt 0:01:09]} 17. Bd3+ {[%emt 0:00:39]} Kg7 {[%emt 0:00:
02]} 18. Qg3+ {[%emt 0:00:01]} Kh8 {[%emt 0:00:01]} 19. Qf4 {[%emt 0:00:01]}
Kg7 {[%emt 0:00:01]} 20. Qg3+ {[%emt 0:00:01]} Kh8 {[%emt 0:00:01]} 21. Qf4 {
[%emt 0:00:00]} Kg7 {[%emt 0:00:00]} 1/2-1/2

[Event "Skilling Open CCT 2021"]
[Site "Online"]
[Date "2020.11.19"]
[Round "14.8"]
[White "Svidler, Peter"]
[Black "Nepomniachtchi, Ian"]
[Result "0-1"]
[ECO "B90"]
[WhiteElo "2742"]
[BlackElo "2778"]
[Annotator "RC"]
[PlyCount "112"]
[EventDate "2020.11.20"]
[EventType "tourn"]
[EventCountry "NET"]
[Tiebreak "Koya+Number of black wins+Number of wins"]
[SourceTitle "playchess.com"]
[Source "ChessBase"]
[SourceQuality "1"]
[TimeControl "900+10"]

1. e4 {[%emt 0:00:00]} c5 {[%emt 0:00:00]} 2. Nf3 {[%emt 0:00:00]} d6 {[%emt 0:
00:00]} 3. d4 {[%emt 0:00:00]} cxd4 {[%emt 0:00:00]} 4. Nxd4 {[%emt 0:00:00]}
Nf6 {[%emt 0:00:00]} 5. Nc3 {[%emt 0:00:00]} a6 {[%emt 0:00:00]} 6. Nb3 {
[%emt 0:00:00]} e6 {[%emt 0:00:01]} 7. g4 {[%emt 0:00:00]} b5 {[%emt 0:00:02]}
8. Bg2 {[%emt 0:00:00]} Bb7 {[%emt 0:00:01]} 9. g5 {[%emt 0:00:01]} Nfd7 {
[%emt 0:00:01]} 10. h4 {[%emt 0:00:01]} b4 {[%emt 0:00:01]} 11. Ne2 {[%emt 0:
00:03]} Nc6 {[%emt 0:00:01]} 12. f4 {[%emt 0:01:58]} h6 {[%emt 0:00:03]} 13.
Be3 {[%emt 0:01:23]} hxg5 {[%emt 0:00:12]} 14. hxg5 {[%emt 0:00:01]} Rxh1+ {
[%emt 0:00:00]} 15. Bxh1 {[%emt 0:00:01]} a5 {[%emt 0:00:09]} 16. Ned4 {
[%emt 0:04:55]} Nxd4 {[%emt 0:02:33]} 17. Nxd4 {[%emt 0:00:02]} Nc5 {[%emt 0:
00:07]} 18. Qg4 {[%emt 0:00:01]} g6 {[%emt 0:01:37]} 19. O-O-O {[%emt 0:01:01]}
Qd7 {[%emt 0:00:21]} 20. e5 {[%emt 0:02:22]} Bxh1 {[%emt 0:00:33]} 21. Rxh1 {
[%emt 0:00:02]} dxe5 {[%emt 0:00:01]} 22. fxe5 {[%emt 0:00:01]} Qd5 {[%emt 0:
00:16]} 23. Qf3 {[%emt 0:02:11]} Rd8 {[%emt 0:00:05]} 24. Qxd5 {[%emt 0:00:20]}
Rxd5 {[%emt 0:00:03]} 25. Nf3 {[%emt 0:00:01]} Nd7 {[%emt 0:00:16]} 26. Bf4 {
[%emt 0:00:08]} Bc5 {[%emt 0:01:08]} 27. Rd1 {[%emt 0:00:22]} Nb6 {[%emt 0:00:
29]} 28. c3 {[%emt 0:00:44]} bxc3 {[%emt 0:00:14]} 29. bxc3 {[%emt 0:00:04]}
Kd7 {[%emt 0:00:09]} 30. Nd2 {[%emt 0:00:42]} Kc6 {[%emt 0:00:27]} 31. Kc2 {
[%emt 0:00:06]} Rd7 {[%emt 0:00:04]} 32. Rf1 {[%emt 0:00:18]} Nd5 {[%emt 0:00:
52]} 33. Nc4 {[%emt 0:00:27]} Kb5 {[%emt 0:01:38]} 34. Nd6+ {[%emt 0:00:10]}
Bxd6 {[%emt 0:00:08]} 35. exd6 {[%emt 0:00:00]} Kc6 {[%emt 0:00:01]} 36. Bd2 {
[%emt 0:00:16]} Kxd6 {[%emt 0:00:09]} 37. c4 {[%emt 0:00:04]} Rc7 {[%emt 0:01:
06]} 38. Bxa5 {[%emt 0:00:15]} Rxc4+ {[%emt 0:00:03]} 39. Kb3 {[%emt 0:00:00]}
Rg4 {[%emt 0:00:29]} 40. Rxf7 {[%emt 0:00:04]} Rxg5 {[%emt 0:00:03]} 41. a4 {
[%emt 0:00:35]} Rg3+ {[%emt 0:00:25]} 42. Kc4 {[%emt 0:00:05]} Kc6 {[%emt 0:00:
04]} 43. Be1 {[%emt 0:01:53]} Ra3 {[%emt 0:01:18]} 44. Bd2 {[%emt 0:01:11]}
Rxa4+ {[%emt 0:00:39]} 45. Kd3 {[%emt 0:00:01]} Kd6 {[%emt 0:00:05]} 46. Ke2 {
[%emt 0:00:07]} Ke5 {[%emt 0:00:06]} 47. Rg7 {[%emt 0:00:04]} Kf5 {[%emt 0:00:
18]} 48. Rf7+ {[%emt 0:00:01]} Ke4 {[%emt 0:00:07]} 49. Rg7 {[%emt 0:00:02]}
Ra2 {[%emt 0:00:03]} 50. Ke1 {[%emt 0:00:08]} Kf5 {[%emt 0:00:35]} 51. Rf7+ {
[%emt 0:00:06]} Nf6 {[%emt 0:00:08]} 52. Bc3 {[%emt 0:00:18]} e5 {[%emt 0:00:
01]} 53. Re7 {[%emt 0:00:01]} Ng4 {[%emt 0:00:09]} 54. Re8 {[%emt 0:00:03]} g5
{[%emt 0:00:21]} 55. Bd2 {[%emt 0:00:20]} Nh2 {[%emt 0:00:14]} 56. Rf8+ {
[%emt 0:00:21]} Ke4 {[%emt 0:00:07]} 0-1